Cogmind - Beta 11.1 @@@ ROGUE MODE // 2022.09.26 @ 00:28:54 // Winter2019/RPGLIKE Player: SmallBrainBigPP Result: Destroyed by Y-64 Sentinel with Wave Gun Performance ------------- Evolutions (5) 2500 Regions Visited (14) 2800 Robots Destroyed (183) 915 Value Destroyed (11917) 11917 Prototype IDs (46) 920 Alien Tech Used (0) 0 Bonus (7396) 7396 TOTAL SCORE: 26448 Bonus ------- High Alert Combat Kills 4315 Follower Combat Kills 490 Entered Garrisons 800 Used RIF Installer 2000 Aligned with FarCom 300 Friendly Fire -509 Cogmind --------- Core Integrity 0/900 Matter 300/300 Energy 990/1000 System Corruption 0% Temperature Cool (9) Movement Flying (25) Location -5/Factory Parts ------- > --- POWER (3) -------- Hybrid Fission Core Micro Fission Core Micro Fission Core > --- PROPULSION (5) --- VTOL Module VTOL Module Cesium-ion Thruster Xenon Bombardment Thruster Xenon Bombardment Thruster > --- UTILITY (10) ----- Trap Scanner Signal Interpreter Advanced Terrain Scanner Microactuators Improved Transmission Jammer Advanced ECM Suite Cloaking Device Improved Focal Shield Advanced System Shield Relay Coupler [Behemoth] (13) > --- WEAPON (3) ------- Remote Datajack Longsword +1 > --- INVENTORY (3) ---- Experimental Sensor Array Force Booster System Restoration Module Peak State ------------ > --- POWER ------------ Micro Nuclear Core Micro Nuclear Core Micro Fission Core > --- PROPULSION ------- VTOL Module VTOL Module VTOL Module Xenon Bombardment Thruster Xenon Bombardment Thruster > --- UTILITY ---------- Trap Scanner Signal Interpreter Improved Terrain Scanner Microactuators Improved Transmission Jammer Advanced ECM Suite Cloaking Device Improved Focal Shield Advanced System Shield Relay Coupler [Behemoth] > --- WEAPON ----------- Improved KE Penetrator Remote Datajack Longsword +1 > --- INVENTORY -------- Experimental Sensor Array Force Booster System Restoration Module [Rating: 92] Favorites ----------- Power Micro Nuclear Core Engine Light Ion Engine Power Core Micro Nuclear Core Propulsion Xenon Bombardment Thruster Wheel Wheel Flight Unit Xenon Bombardment Thruster Utility Improved Terrain Scanner Device Improved Terrain Scanner Processor Signal Interpreter Hackware System Shield Protection Light Armor Plating Weapon Longsword +1 Energy Gun EM Shotgun Ballistic Gun Improved KE Penetrator Launcher Proton Missile Launcher Special Weapon Mining Laser Slashing Weapon Longsword +1 Special Melee Weapon Improved Datajack Build | -11 -10 -10 -10 -9 -8 -7 -7 -7 -7 -6 -6 -6 -6 -5 ------- Run | Scr Mat Min Exi Min Mat Fac Gar Fac Gar Fac Gar Fac Gar Fac Slots Evolved 17 | 1 5 . . . 3 1 3 1 1 . . 1 . 1 Power 2 | . . . . . . . 1 . . . . . . 1 Propulsion 4 | . 2 . . . 1 . . . 1 . . . . . Utility 9 | . 3 . . . 2 1 2 . . . . 1 . . Weapon 2 | 1 . . . . . . . 1 . . . . . . Parts Attached 126 | 6 11 . 1 5 10 16 10 8 13 . 9 3 11 23 Power 16 | 1 1 . . 1 2 2 2 3 . . . . 1 3 Engine 6 | 1 1 . . 1 2 1 . . . . . . . . Core 10 | . . . . . . 1 2 3 . . . . 1 3 Reactor . | . . . . . . . . . . . . . . . Propulsion 41 | 1 4 . . 3 1 4 . . 6 . 6 1 3 12 Treads . | . . . . . . . . . . . . . . . Leg . | . . . . . . . . . . . . . . . Wheel 1 | 1 . . . . . . . . . . . . . . Hover . | . . . . . . . . . . . . . . . Flight 40 | . 4 . . 3 1 4 . . 6 . 6 1 3 12 Utility 55 | 1 3 . . . 7 9 8 4 7 . 3 1 5 7 Device 35 | 1 . . . . 4 8 7 2 3 . . 1 3 6 Storage . | . . . . . . . . . . . . . . . Processor 5 | . 2 . . . 2 1 . . . . . . . . Hackware 14 | . . . . . 1 . 1 2 4 . 3 . 2 1 Protection 1 | . 1 . . . . . . . . . . . . . Artifact . | . . . . . . . . . . . . . . . Weapon 14 | 3 3 . 1 1 . 1 . 1 . . . 1 2 1 Energy Gun 4 | 2 2 . . . . . . . . . . . . . Energy Cannon . | . . . . . . . . . . . . . . . Ballistic Gun 1 | . . . . . . . . . . . . . . 1 Ballistic Cannon . | . . . . . . . . . . . . . . . Launcher 3 | . . . . . . 1 . . . . . . 2 . Special Weapon 4 | 1 1 . . 1 . . . . . . . 1 . . Impact Weapon . | . . . . . . . . . . . . . . . Slashing Weapon 1 | . . . 1 . . . . . . . . . . . Piercing Weapon . | . . . . . . . . . . . . . . . Special Melee Weapon 1 | . . . . . . . . 1 . . . . . . Unidentified Prototypes 2 | . . . . . . . . . . . . . . 2 Parts Lost 5 | . . . . . . . . . . . . . 1 4 Power 2 | . . . . . . . . . . . . . . 2 Propulsion 2 | . . . . . . . . . . . . . 1 1 Utility . | . . . . . . . . . . . . . . . Weapon 1 | . . . . . . . . . . . . . . 1 Highest Loss Streak 2 | . . . . . . . . . . . . . 1 2 To Critical Strikes . | . . . . . . . . . . . . . . . Average Slot Usage (%) 99 | . 99 100 100 100 99 100 100 98 98 100 100 100 98 96 Engine 4 | . 16 10 10 10 8 3 . . . . . . . . Core 6 | . . . . . . 3 10 11 10 10 10 10 10 12 Flight 26 | . 24 30 30 30 31 28 24 22 25 26 26 25 25 23 Device 25 | . 16 10 10 10 16 32 35 29 26 26 26 29 30 30 Processor 7 | . . 20 20 20 15 7 5 5 5 5 5 5 5 4 Hackware 8 | . . . . . 4 7 8 12 13 15 15 15 14 11 Protection 1 | . . 10 10 10 3 . . . . . . . . . Energy Gun 2 | . 16 20 11 2 . . . . . . . . . . Launcher 3 | . . . . . . 6 5 5 5 5 5 5 4 . Special Weapon 3 | . 16 . . 7 8 . . . . . . 1 5 4 Slashing Weapon 5 | . . . 8 10 8 7 5 5 5 5 5 5 5 4 Special Melee Weapon 1 | . . . . . . . . 4 5 5 5 3 . . Naked Turns . | . . . . . . . . . . . . . . . Heaviest Build 39 | 7 13 13 13 13 18 28 35 36 37 32 32 35 35 39 Greatest Support 43 | 10 17 17 17 17 21 39 39 39 43 39 39 39 39 41 Greatest Overweight (x) 1 | 1 . . . . . . . . . . . . . . Average Overweight (x) . | . . . . . . . . . . . . . . . Largest Inventory Capacity 3 | . 1 1 1 1 2 2 2 3 3 3 3 3 3 3 Average Capacity 2 | . . 1 1 1 1 2 2 2 3 3 3 3 3 3 Most Carried 3 | . 1 1 1 1 2 2 2 3 3 3 3 3 3 3 Average Carried 2 | . . 1 1 1 1 2 2 2 2 3 3 3 2 3 Final Capacity 3 | . 1 1 1 1 2 2 2 3 3 3 3 3 3 3 Final Carried 3 | . 1 1 1 1 2 2 2 3 3 3 3 3 3 3 Class Distribution -------------------- 35% | Scavenger-Ninja 26% | Infiltrator-Ninja 13% | Scavenger-Scout 9% | Generator-Ninja 9% | Scavenger-Mutant 4% | Mutant Dominant Class ---------------- Scavenger-Mutant | -10/Materials Scavenger-Mutant | -10/Mines Scavenger-Mutant | -10/Exiles Scavenger-Scout | -9/Mines Scavenger-Scout | -8/Materials Scavenger-Ninja | -7/Factory Infiltrator-Ninja | -7/Garrison Infiltrator-Ninja | -7/Factory Scavenger-Ninja | -7/Garrison Scavenger-Ninja | -6/Factory Scavenger-Ninja | -6/Garrison Scavenger-Ninja | -6/Factory Infiltrator-Ninja | -6/Garrison Generator-Ninja | -5/Factory Resources | -11 -10 -10 -10 -9 -8 -7 -7 -7 -7 -6 -6 -6 -6 -5 ----------- Run | Scr Mat Min Exi Min Mat Fac Gar Fac Gar Fac Gar Fac Gar Fac Matter Collected 1899 | 232 103 12 . 42 141 96 273 125 155 . 90 . 386 244 Remotely . | . . . . . . . . . . . . . . . Salvage Created 7385 | 51 257 . . 18 936 202 1142 357 1661 90 870 102 970 729 Parts 440 | 9 43 . . 10 52 28 63 23 63 4 60 9 33 43 Haulers Intercepted 7 | . . . . . 4 . . 1 . 1 . . . 1 Recyclers Shooed . | . . . . . . . . . . . . . . . Parts Field Recycled . | . . . . . . . . . . . . . . . Retrieved Matter . | . . . . . . . . . . . . . . . Parts Self-Destructed . | . . . . . . . . . . . . . . . Prevented . | . . . . . . . . . . . . . . . Kills | -11 -10 -10 -10 -9 -8 -7 -7 -7 -7 -6 -6 -6 -6 -5 ------- Run | Scr Mat Min Exi Min Mat Fac Gar Fac Gar Fac Gar Fac Gar Fac Combat Hostiles Destroyed 142 | . 9 . . 4 17 3 28 3 25 1 25 . 16 11 Melee 129 | . . . . 4 17 3 28 3 24 1 25 . 13 11 Guns 7 | . 7 . . . . . . . . . . . . . Cannons 1 | . 1 . . . . . . . . . . . . . AOE 3 | . 1 . . . . . . . . . . . 2 . Classes Destroyed 18 | 1 5 . . . 3 1 2 2 . . . 1 1 2 Worker 5 | . 1 . . . 1 2 . . . . . 1 . . Builder 5 | . 4 . . . . . . 1 . . . . . . Tunneler 5 | 3 . . . . . 1 . . . . . 1 . . Hauler 7 | . . . . . 4 . . 1 . 1 . . . 1 Recycler 2 | . . . . . . . . 2 . . . . . . Mechanic 1 | . . . . . . . . . . . . 1 . . Operator 5 | . 1 . . . . 2 . 1 . . . 1 . . Watcher 10 | . 3 . . . 2 1 . . . . . . . 4 Swarmer 49 | . 9 . . 4 3 . . . 13 1 10 . 4 5 Saboteur 1 | . . . . . . . . . . . . . . 1 Grunt 45 | . . . . . 8 . 16 . 6 . 7 . 8 . Brawler 2 | . . . . . . . . . . . . . 2 . Duelist 6 | . . . . . . . 2 . 2 . . . 2 . Protector 1 | . . . . . . . . 1 . . . . . . Sentry 23 | . . . . . 6 . 8 . 3 . 6 . . . Hunter 5 | . . . . . . . 2 . 1 . 2 . . . Programmer 10 | . . . . . . 3 . 2 . . . . 1 4 Heavy 1 | . . . . . . . . . . . . . . 1 Best Kill Streak 10 | 3 5 . . 4 10 2 7 1 4 2 8 2 4 4 Combat Bots Only 9 | . 3 . . 4 9 1 7 1 4 1 8 . 4 4 Max Kills in Single Turn 3 | 1 3 . . 1 1 1 1 1 1 1 1 2 1 1 Gunslinging . | . . . . . . . . . . . . . . . Exploded 1 | . 1 . . . . . . . . . . . 1 . Melee 1 | . . . . 1 1 1 1 1 1 1 1 . 1 1 Uniques/NPCs Destroyed . | . . . . . . . . . . . . . . . Combat | -11 -10 -10 -10 -9 -8 -7 -7 -7 -7 -6 -6 -6 -6 -5 -------- Run | Scr Mat Min Exi Min Mat Fac Gar Fac Gar Fac Gar Fac Gar Fac Damage Taken 7924 | . 456 . . 36 540 427 1483 253 963 17 1644 114 984 1007 Core 6418 | . 356 . . 25 455 335 1183 212 783 13 1326 96 800 834 Absorbed by Shields 195 | . . . . . . 61 . . 24 . . 30 80 . Redirected to Core 5033 | . 303 . . 25 281 299 974 146 599 13 1044 59 645 645 Core Remaining (%) 83 | 100 . . . 68 100 . . . 94 . . . 54 . Volleys Fired 261 | 13 148 . . . 15 10 10 9 5 . . 9 36 6 Largest 2 | 1 2 . . . 1 1 1 1 1 . . 1 1 1 Hottest 145 | 40 145 . . . 100 39 39 39 39 . . 39 39 33 Shots Fired 277 | 13 164 . . . 15 10 10 9 5 . . 9 36 6 Gun 110 | 13 96 . . . . . . . . . . . . 1 Cannon . | . . . . . . . . . . . . . . . Launcher 65 | . . . . . . 10 10 9 5 . . 9 22 . Special 102 | . 68 . . . 15 . . . . . . . 14 5 Kinetic 1 | . . . . . . . . . . . . . . 1 Thermal 96 | 13 68 . . . 15 . . . . . . . . . Explosive . | . . . . . . . . . . . . . . . Electromagnetic 161 | . 96 . . . . 10 10 9 5 . . 9 22 . Robot Hit Streak 9 | 3 6 . . . . . . 2 4 . . . 9 4 Robot Miss Streak 5 | 5 4 . . . 1 . . . 1 . . . 1 2 Penetration Max . | . . . . . . . . . . . . . . . Secondary Targets . | . . . . . . . . . . . . . . . Shots Hit Robots 504 | 6 20 . . 5 61 13 80 29 91 5 72 . 68 54 Core Hits 228 | 4 22 . . 4 22 10 31 8 40 1 30 7 30 19 Critical Kills . | . . . . . . . . . . . . . . . Critical Parts Destroyed . | . . . . . . . . . . . . . . . Critical Strikes 38 | . . . . . 5 2 6 1 8 . 9 . 3 4 Sever 38 | . . . . . 5 2 6 1 8 . 9 . 3 4 Melee Attacks 948 | . . . . 5 107 84 194 84 157 10 124 24 58 101 Impact . | . . . . . . . . . . . . . . . Slashing 917 | . . . . 5 107 84 194 71 147 6 120 24 58 101 Piercing . | . . . . . . . . . . . . . . . Sneak Attacks 47 | . . . . . 6 1 5 11 6 1 9 . 6 2 Combat Hostiles 24 | . . . . . 1 . 5 3 3 . 9 . 2 1 Follow-up Attacks . | . . . . . . . . . . . . . . . Damage Inflicted 25406 | 76 480 . . 229 3336 1188 4562 1068 4848 160 3677 342 3254 2186 Guns 328 | 76 252 . . . . . . . . . . . . . Cannons . | . . . . . . . . . . . . . . . Explosions 2074 | . 180 . . . . 466 . 194 244 . . 342 648 . Melee 22956 | . . . . 229 3336 722 4562 874 4604 160 3677 . 2606 2186 Ramming . | . . . . . . . . . . . . . . . Kinetic . | . . . . . . . . . . . . . . . Thermal 813 | 76 138 . . . . 166 . 74 55 . . 304 . . Explosive 300 | . . . . . . 300 . . . . . . . . Electromagnetic 1337 | . 342 . . . . . . 120 189 . . 38 648 . Impact . | . . . . . . . . . . . . . . . Slashing 22956 | . . . . 229 3336 722 4562 874 4604 160 3677 . 2606 2186 Piercing . | . . . . . . . . . . . . . . . Highest Corruption 2 | . . . . . . 1 1 1 . . . . 2 . Average Corruption 1 | . . . . . . 1 1 1 . . . . 1 . Corruption Purged 7 | . . . . . . 2 2 1 . . . . 2 . Corruption Blocked . | . . . . . . . . . . . . . . . Effects 6 | . . . . . . 2 . . . . . . 4 . Matter Fused 4 | . . . . . . 1 . . . . . . 3 . Heat Flow Errors 1 | . . . . . . . . . . . . . 1 . Data Loss (minor) 1 | . . . . . . 1 . . . . . . . . Overload Shots . | . . . . . . . . . . . . . . . Overflow Damage 1832 | . . . . . 279 147 216 145 392 27 153 30 305 138 Projectiles . | . . . . . . . . . . . . . . . Explosions 112 | . . . . . . 49 . 2 28 . . 30 3 . Melee 1720 | . . . . . 279 98 216 143 364 27 153 . 302 138 Knockbacks . | . . . . . . . . . . . . . . . Impact . | . . . . . . . . . . . . . . . Kinetic . | . . . . . . . . . . . . . . . Secondary . | . . . . . . . . . . . . . . . Self-Inflicted Damage 292 | . 67 . . . . 5 32 90 . . . 34 64 . Shots 15 | . 2 . . . . 2 2 3 . . . 2 4 . Rammed . | . . . . . . . . . . . . . . . Targets Rammed . | . . . . . . . . . . . . . . . Kicked . | . . . . . . . . . . . . . . . Crushed . | . . . . . . . . . . . . . . . Highest Temperature 230 | . 230 . . . 2 . 8 14 23 3 14 12 219 52 Average Temperature 36 | . 50 . . . 2 . 3 8 18 3 4 8 49 14 Received Heat Transfer 2082 | . . . . . 288 104 546 9 309 . 480 40 267 39 Siege Activations . | . . . . . . . . . . . . . . . Robots Corrupted 2 | . . . . . . . . . 1 . . . 1 . Combat Hostiles 2 | . . . . . . . . . 1 . . . 1 . Parts Fried 1 | . . . . . . . . . . . . . 1 . Impact Corruptions . | . . . . . . . . . . . . . . . Robots Melted . | . . . . . . . . . . . . . . . Combat Hostiles . | . . . . . . . . . . . . . . . Parts Melted 1 | . . . . . . . . . 1 . . . . . Heat Transferred 900 | 175 150 . . . . 125 . 50 100 . . 300 . . Parts Sabotaged . | . . . . . . . . . . . . . . . Parts Stolen . | . . . . . . . . . . . . . . . Parts Stripped . | . . . . . . . . . . . . . . . Power Chain Reactions 6 | . 3 . . . . . . . 1 . . 1 1 . Missiles Intercepted . | . . . . . . . . . . . . . . . Alert | -11 -10 -10 -10 -9 -8 -7 -7 -7 -7 -6 -6 -6 -6 -5 ------- Run | Scr Mat Min Exi Min Mat Fac Gar Fac Gar Fac Gar Fac Gar Fac Peak Influence 2456 | 15 364 141 . 105 824 1353 2456 1873 2356 1280 1988 1719 2120 1727 Initial 1289 | . 9 141 . . . 374 956 1289 1276 1236 896 1043 1203 1113 Average 1068 | 8 179 141 . 19 301 847 1837 1658 1814 1252 1348 1364 1645 1491 Maximum Alert Level 5 | . 1 . . . 3 4 5 5 5 4 5 5 5 5 Low Security (%) 20 | 100 53 100 . 100 52 . . . . . . . . . Level 1 6 | . 46 . . . 4 7 . . . . . . . . Level 2 8 | . . . . . 34 25 . . . . . . . . Level 3 13 | . . . . . 8 61 15 . . . 36 17 . . Level 4 20 | . . . . . . 5 16 20 30 100 37 59 45 63 Level 5 29 | . . . . . . . 67 79 69 . 25 22 54 36 High Security . | . . . . . . . . . . . . . . . Max Security . | . . . . . . . . . . . . . . . Squads Dispatched 24 | . 1 . . . 2 5 . 4 . . . 4 . 8 Investigation 1 | . 1 . . . . . . . . . . . . . Extermination 7 | . . . . . . 3 . 1 . . . 1 . 2 Reinforcement 4 | . . . . . 2 . . . . . . . . 2 Assault 12 | . . . . . . 2 . 3 . . . 3 . 4 Garrison . | . . . . . . . . . . . . . . . Intercept . | . . . . . . . . . . . . . . . Searches Triggered . | . . . . . . . . . . . . . . . Construction Impeded . | . . . . . . . . . . . . . . . Haulers Reinforced . | . . . . . . . . . . . . . . . Active Scanning Responses . | . . . . . . . . . . . . . . . Cargo Convoy Interrupts . | . . . . . . . . . . . . . . . Alert ID Control Effect 7 | . . . . . . . . . 1 1 2 . 1 2 Stealth | -11 -10 -10 -10 -9 -8 -7 -7 -7 -7 -6 -6 -6 -6 -5 --------- Run | Scr Mat Min Exi Min Mat Fac Gar Fac Gar Fac Gar Fac Gar Fac Distress Signals 6 | . 1 . . . 4 . . 1 . . . . . . Communications Jammed 29 | . . . . . . 4 . 3 1 3 . . . 18 Distress Signals 9 | . . . . . . 4 . 3 . 1 . . . 1 Times Spotted 314 | . 18 . . 5 29 20 34 27 41 5 41 8 42 44 Peak Tracking Total 8 | . 3 . . 4 8 7 5 7 6 3 6 6 6 6 Tactical Retreats 45 | . 1 . . 1 2 3 4 6 4 . 6 2 7 9 Traps | -11 -10 -10 -10 -9 -8 -7 -7 -7 -7 -6 -6 -6 -6 -5 ------- Run | Scr Mat Min Exi Min Mat Fac Gar Fac Gar Fac Gar Fac Gar Fac Traps Triggered 24 | . . . . . . 3 9 . 4 . 1 2 5 . Indirectly 6 | . . . . . . . 4 . . . . . 2 . Trap Hack Attempts 120 | . . . . . . . . . 86 3 31 . . . Triggered . | . . . . . . . . . . . . . . . Disarmed 14 | . . . . . 6 6 . . 2 . . . . . Reprogrammed 10 | . . . . . . . . . 7 1 2 . . . Reused . | . . . . . . . . . . . . . . . Traps Extracted . | . . . . . . . . . . . . . . . Installed . | . . . . . . . . . . . . . . . Triggered . | . . . . . . . . . . . . . . . Machines | -11 -10 -10 -10 -9 -8 -7 -7 -7 -7 -6 -6 -6 -6 -5 ---------- Run | Scr Mat Min Exi Min Mat Fac Gar Fac Gar Fac Gar Fac Gar Fac Machines Disabled 257 | . 27 . . . 27 69 12 40 8 2 6 42 3 21 Max in Single Turn 8 | . 2 . . . 1 5 2 5 1 1 1 8 1 1 Garrison Relay 15 | . . . . . . . 5 . 4 . 4 . 2 . Phase Generator 1 | . . . . . . . 1 . . . . . . . Machines Sabotaged . | . . . . . . . . . . . . . . . Garrisons Compromised . | . . . . . . . . . . . . . . . Overloaded Fab Kills . | . . . . . . . . . . . . . . . Hacking | -11 -10 -10 -10 -9 -8 -7 -7 -7 -7 -6 -6 -6 -6 -5 --------- Run | Scr Mat Min Exi Min Mat Fac Gar Fac Gar Fac Gar Fac Gar Fac Machines Accessed 31 | . 8 . 1 . 5 5 . 3 . 2 . 2 . 5 Terminals 25 | . 7 . . . 5 4 . 2 . 1 . 1 . 5 Fabricators . | . . . . . . . . . . . . . . . Repair Stations . | . . . . . . . . . . . . . . . Recycling Units 1 | . 1 . . . . . . . . . . . . . Scanalyzers . | . . . . . . . . . . . . . . . Garrison Access 4 | . . . . . . 1 . 1 . 1 . 1 . . Total Hacks 75 | . 23 . 1 . 17 9 . 4 . 5 . 4 . 12 Successful 35 | . 8 . 1 . 6 6 . 3 . 4 . 1 . 6 Failed 40 | . 15 . . . 11 3 . 1 . 1 . 3 . 6 Catastrophic 9 | . 4 . . . 1 1 . 1 . 1 . 1 . . Database Lockouts . | . . . . . . . . . . . . . . . Manual 24 | . 10 . 1 . 6 2 . . . 1 . 3 . 1 Terminals 68 | . 21 . . . 17 8 . 3 . 4 . 3 . 12 Fabricators . | . . . . . . . . . . . . . . . Repair Stations . | . . . . . . . . . . . . . . . Recycling Units 2 | . 2 . . . . . . . . . . . . . Scanalyzers . | . . . . . . . . . . . . . . . Garrison Access 4 | . . . . . . 1 . 1 . 1 . 1 . . Terminal Hacks 31 | . 8 . 1 . 6 5 . 2 . 3 . . . 6 Record 4 | . . . . . . . . . . 1 . . . 3 Prototype ID Bank 9 | . 2 . . . 1 2 . 2 . 1 . . . 1 Open DSF 1 | . . . . . . 1 . . . . . . . . Alert Level 3 | . 2 . . . . . . . . 1 . . . . Unreport Threat 3 | . 1 . . . 1 . . . . . . . . 1 Locate Traps 4 | . 1 . . . 1 1 . . . . . . . 1 Disarm Traps 2 | . . . . . 1 1 . . . . . . . . Registered Prototypes 1 | . . . . . 1 . . . . . . . . . Zone Layout 3 | . 2 . . . 1 . . . . . . . . . EX-Prototype ID Bank 1 | . . . 1 . . . . . . . . . . . Fabricator Hacks . | . . . . . . . . . . . . . . . Repair Station Hacks . | . . . . . . . . . . . . . . . Recycling Unit Hacks . | . . . . . . . . . . . . . . . Scanalyzer . | . . . . . . . . . . . . . . . Garrison Access Hacks 4 | . . . . . . 1 . 1 . 1 . 1 . . Unlock Access 4 | . . . . . . 1 . 1 . 1 . 1 . . Unauthorized Hacks . | . . . . . . . . . . . . . . . Terminals . | . . . . . . . . . . . . . . . Fabricators . | . . . . . . . . . . . . . . . Repair Stations . | . . . . . . . . . . . . . . . Recycling Units . | . . . . . . . . . . . . . . . Scanalyzers . | . . . . . . . . . . . . . . . Garrison Access . | . . . . . . . . . . . . . . . Data Cores Recovered 2 | . . . . . . 1 . 1 . . . . . . Used 2 | . . . . . . 1 . 1 . . . . . . Hacking Detections 21 | . 7 . . . 5 3 . 1 . 1 . 1 . 3 Full Trace Events 1 | . 1 . . . . . . . . . . . . . Feedback Events . | . . . . . . . . . . . . . . . Feedback Blocked . | . . . . . . . . . . . . . . . Robot Schematics Acquired . | . . . . . . . . . . . . . . . Robots Built . | . . . . . . . . . . . . . . . Authchips . | . . . . . . . . . . . . . . . Time . | . . . . . . . . . . . . . . . Total Robot Build Rating . | . . . . . . . . . . . . . . . Part Schematics Acquired . | . . . . . . . . . . . . . . . Parts Built . | . . . . . . . . . . . . . . . Authchips . | . . . . . . . . . . . . . . . Time . | . . . . . . . . . . . . . . . Total Part Build Rating . | . . . . . . . . . . . . . . . Parts Repaired . | . . . . . . . . . . . . . . . Time . | . . . . . . . . . . . . . . . Parts Recycled . | . . . . . . . . . . . . . . . Recycled Matter . | . . . . . . . . . . . . . . . Retrieved Matter . | . . . . . . . . . . . . . . . Retrieved Components . | . . . . . . . . . . . . . . . Parts Scanalyzed . | . . . . . . . . . . . . . . . Part Schematics Acquired . | . . . . . . . . . . . . . . . Parts Damaged . | . . . . . . . . . . . . . . . Bothacking | -11 -10 -10 -10 -9 -8 -7 -7 -7 -7 -6 -6 -6 -6 -5 ------------ Run | Scr Mat Min Exi Min Mat Fac Gar Fac Gar Fac Gar Fac Gar Fac Used RIF Installer 4 | . . . . . . . 1 . 1 . 1 . 1 . Coupler Efficiency 1 | . . . . . . . . . . . . . 1 . Watcher Feeds 1 | . . . . . . . . . . . 1 . . . Alert ID Control 1 | . . . . . . . . . 1 . . . . . Robots Hacked 29 | . . . . . . . . 9 8 3 3 . 4 2 Non-combat 4 | . . . . . . . . 3 . . . . . 1 Combat 25 | . . . . . . . . 6 8 3 3 . 4 1 Robot Hacks Applied 33 | . . . . . . . . 11 8 3 3 . 5 3 no_distress 1 | . . . . . . . . 1 . . . . . . generate_echo 1 | . . . . . . . . 1 . . . . . . drop_inventory 1 | . . . . . . . . . . . . . . 1 locate_stockpiles 1 | . . . . . . . . . . . . . . 1 ignore_parts 1 | . . . . . . . . 1 . . . . . . link_fov 1 | . . . . . . . . 1 . . . . . . disable_weapons 1 | . . . . . . . . . 1 . . . . . overwrite_iff 3 | . . . . . . . . . . . 1 . 2 . streamctrl_low 1 | . . . . . . . . 1 . . . . . . formatsys_high 22 | . . . . . . . . 6 7 3 2 . 3 1 Relay Couplers Released 29 | . . . . . . . 10 2 6 . 7 . 4 . Machine Destruction 27 | . . . . . . . 10 . 6 . 7 . 4 . Programmers 2 | . . . . . . . . 2 . . . . . . Attached 12 | . . . . . . . 1 2 4 . 3 . 2 . Fabnet Peak Effective % . | . . . . . . . . . . . . . . . Robots Rewired . | . . . . . . . . . . . . . . . Allies Hacked . | . . . . . . . . . . . . . . . Hacks Repelled . | . . . . . . . . . . . . . . . Allies | -11 -10 -10 -10 -9 -8 -7 -7 -7 -7 -6 -6 -6 -6 -5 -------- Run | Scr Mat Min Exi Min Mat Fac Gar Fac Gar Fac Gar Fac Gar Fac Total Allies 25 | . . . . . . . . 7 7 3 3 . 4 1 Largest Group 5 | . . . . . . . . 3 5 2 5 . 2 1 Highest-Rated Group 135 | . . . . . . . . 48 80 49 135 . 58 85 Highest-Rated Ally 85 | . . . . . . . . 29 16 29 29 . 29 85 Total Orders 12 | . . . . . . . . 7 . . 4 . . 1 STAY 2 | . . . . . . . . 2 . . . . . . ROAM 8 | . . . . . . . . 3 . . 4 . . 1 FOLLOW 2 | . . . . . . . . 2 . . . . . . Ally Attacks 135 | . . . . . . . . 26 60 15 11 . 16 7 Total Damage 2509 | . . . . . . . . 421 802 350 244 . 220 472 Kills 13 | . . . . . . . . 2 5 1 2 . 1 2 Allies Corrupted . | . . . . . . . . . . . . . . . Allies Melted . | . . . . . . . . . . . . . . . Intel | -11 -10 -10 -10 -9 -8 -7 -7 -7 -7 -6 -6 -6 -6 -5 ------- Run | Scr Mat Min Exi Min Mat Fac Gar Fac Gar Fac Gar Fac Gar Fac Robot Analysis Total . | . . . . . . . . . . . . . . . Derelict Logs Recovered 2 | . . 1 . 1 . . . . . . . . . . Drone Launches . | . . . . . . . . . . . . . . . Drone Recoveries . | . . . . . . . . . . . . . . . Exploration | -11 -10 -10 -10 -9 -8 -7 -7 -7 -7 -6 -6 -6 -6 -5 ------------- Run | Scr Mat Min Exi Min Mat Fac Gar Fac Gar Fac Gar Fac Gar Fac Turns Passed 15343 | 171 1497 281 224 631 2335 1980 1973 1354 1221 161 802 503 612 1598 Spaces Moved 11660 | 92 661 118 444 446 1272 1262 1616 1231 1097 113 928 452 484 1444 Core 25 | 25 . . . . . . . . . . . . . . Treads . | . . . . . . . . . . . . . . . Legs . | . . . . . . . . . . . . . . . Wheels 191 | 67 124 . . . . . . . . . . . . . Hover . | . . . . . . . . . . . . . . . Flight 11444 | . 537 118 444 446 1272 1262 1616 1231 1097 113 928 452 484 1444 Fastest Speed 24 | 50 34 34 34 34 31 31 31 31 25 25 25 25 24 24 Average Speed 30 | 76 42 34 34 34 31 31 31 31 25 25 25 25 24 25 Slowest Speed 100 | 100 80 34 34 34 34 31 31 31 31 25 25 25 27 28 Overloaded Moves . | . . . . . . . . . . . . . . . Propulsion Burnouts . | . . . . . . . . . . . . . . . Robots Hopped 7 | . 3 . . 1 2 . . . . 1 . . . . Cave-ins Triggered . | . . . . . . . . . . . . . . . Exploration Rate (%) 52 | 4 80 34 91 92 65 29 94 17 84 3 93 16 42 40 Regions Visited 14 Branch Regions 3 Pre-discovered Areas . | . . . . . . . . . . . . . . . Known Exits Taken 9 | . 1 1 1 1 1 1 . 1 . 1 . 1 . . Unknown Exits Taken 1 | 1 . . . . . . . . . . . . . . Scrap Searched 3 | . . 1 . 2 . . . . . . . . . . Spaces Dug 241 | . 15 . . . 27 45 42 11 28 2 22 14 5 30 Terrain Destroyed 953 | . 62 . . . 31 300 116 154 28 2 22 189 19 30 Melee 196 | . . . . . 18 24 42 11 28 2 22 14 5 30 Projectile 34 | . 21 . . . 13 . . . . . . . . . AOE 723 | . 41 . . . . 276 74 143 . . . 175 14 . Terrain Rammed . | . . . . . . . . . . . . . . . Walls Destroyed . | . . . . . . . . . . . . . . . Machines Disabled . | . . . . . . . . . . . . . . . Actions | -11 -10 -10 -10 -9 -8 -7 -7 -7 -7 -6 -6 -6 -6 -5 --------- Run | Scr Mat Min Exi Min Mat Fac Gar Fac Gar Fac Gar Fac Gar Fac Total 22372 | 177 1570 358 516 920 3048 2754 2929 2153 1939 241 1429 816 905 2617 Wait 8629 | 66 743 241 71 455 1604 1341 935 799 457 112 250 299 242 1014 Move 11632 | 91 654 117 443 443 1268 1261 1614 1230 1096 110 926 452 483 1444 Hop 6 | . 3 . . 1 1 . . . . 1 . . . . Pick Up 4 | . 1 . . 1 1 . . 1 . . . . . . Fast Attach 64 | 6 7 . 1 . 8 6 3 2 7 . 3 3 6 12 Attach 2 | . . . . . . . . 2 . . . . . . Detach 4 | . . . . . . . . 2 1 . . . 1 . Swap 60 | . 4 . . 5 2 10 7 4 6 . 6 . 5 11 Drop 74 | 1 5 . 1 5 7 11 1 4 6 . 9 2 4 18 Fire 261 | 13 148 . . . 15 10 10 9 5 . . 9 36 6 Melee 948 | . . . . 5 107 84 194 84 157 10 124 24 58 101 Ram . | . . . . . . . . . . . . . . . Kick . | . . . . . . . . . . . . . . . Crush . | . . . . . . . . . . . . . . . Escape Stasis 247 | . . . . . . 25 90 . 53 . 13 27 39 . Rewire 19 | . . . . . . . . 6 7 3 2 . 1 . Trap 120 | . . . . . . . . . 86 3 31 . . . Miscellaneous 302 | . 5 . . 5 35 6 75 10 58 2 65 . 30 11 Route ------- -11/Scrapyard -10/Materials (discovered 4 exits: [*Mat x3] / *Min) -10/Mines -10/Exiles -9/Mines (discovered 2 exits: *Mat x2) -8/Materials (discovered 2 exits: *Fac / Sto) -7/Factory (discovered 2 exits: Fac / Gar) -7/Garrison (discovered 3 exits: *Fac x3) -7/Factory (discovered 3 exits: *Fac x2 / Gar) -7/Garrison (discovered 3 exits: *Fac x3) -6/Factory (discovered 2 exits: *Fac / Gar) -6/Garrison (discovered 3 exits: *Fac x3) -6/Factory (discovered 2 exits: *Fac / Gar) -6/Garrison -5/Factory (discovered 2 exits: [*Fac x2]) History --------- Turn | Location | Event 3 | -11/Scrapyard | Discovered new exit (range 15) 9 | -11/Scrapyard | Upgraded with Weapon slot (x1) 172 | -11/Scrapyard | Entered Materials 182 | -10/Materials | Discovered new exit (range 16) 306 | -10/Materials | Build established: Mutant 767 | -10/Materials | Upgraded with Propulsion slot (x1) 772 | -10/Materials | Upgraded with Propulsion slot (x1) 1047 | -10/Materials | Reached level 2 1078 | -10/Materials | Build established: Scavenger-Mutant 1297 | -10/Materials | Discovered new exit (range 13) 1378 | -10/Materials | Discovered new exit (range 6) 1480 | -10/Materials | Discovered new exit (range 15) 1558 | -10/Materials | Upgraded with Utility slot (x1) 1604 | -10/Materials | Reached level 3 1636 | -10/Materials | Upgraded with Utility slot (x1) 1638 | -10/Materials | Upgraded with Utility slot (x1) 1652 | -10/Materials | Identified exit to Mines 1669 | -10/Materials | Entered Mines 1671 | -10/Mines | Met a Derelict bent on vengeance 1825 | -10/Mines | Learned Materials stockpile data 1933 | -10/Mines | Discovered new exit (range 12) 1949 | -10/Mines | Deemed a non-threat by the Exiles lab entrance 1950 | -10/Mines | Identified exit to Exiles 1950 | -10/Mines | Entered Exiles 1959 | -10/Exiles | Met 8R-AWN 1965 | -10/Exiles | Met EX-HEX 1975 | -10/Exiles | Met EX-BIN 1979 | -10/Exiles | Aligned with FarCom system 1979 | -10/Exiles | Given EX-Vault access code 1988 | -10/Exiles | Opened EX-Vault 1991 | -10/Exiles | Found Longsword +1 2000 | -10/Exiles | Warned to stay clear of 0b10 Research branches 2009 | -10/Exiles | Met EX-DEC 2055 | -10/Exiles | Visited The Gauntlet 2157 | -10/Exiles | Discovered new exit (range 15) 2164 | -10/Exiles | Identified exit to Mines 2174 | -10/Exiles | Left Exiles lab with Longsword +1 2174 | -10/Exiles | Entered Mines 2176 | -9/Mines | Reached level 4 2300 | -9/Mines | Discovered new exit (range 14) 2355 | -9/Mines | Found a damaged Exp. Sensor Array with a note attached 2358 | -9/Mines | Found Prototype Device 2366 | -9/Mines | Identified exit to Materials 2493 | -9/Mines | Build established: Scavenger-Scout 2496 | -9/Mines | YI-UF0 nonchalantly dropped a Grenade Launcher on the ground 2684 | -9/Mines | Discovered exit to Materials (range 12) 2805 | -9/Mines | Entered Materials 2806 | -8/Materials | Identified exit to Storage 2807 | -8/Materials | Reached level 5 3719 | -8/Materials | Upgraded with Propulsion slot (x1) 4001 | -8/Materials | Reached level 6 4027 | -8/Materials | Core integrity fell below 50% 4081 | -8/Materials | Destroyed 9 combat bots 4082 | -8/Materials | Upgraded with Utility slot (x1) 4161 | -8/Materials | Reached level 7 4237 | -8/Materials | Upgraded with Utility slot (x1) 4599 | -8/Materials | Build established: Scavenger-Ninja 4835 | -8/Materials | Discovered new exit (range 14) 4920 | -8/Materials | Reached level 8 5140 | -8/Materials | Identified exit to Factory 5140 | -8/Materials | Entered Factory 5142 | -7/Factory | Reached level 9 5310 | -7/Factory | Identified exit to DSF 5369 | -7/Factory | Reached level 10 5664 | -7/Factory | Build established: Infiltrator-Ninja 5796 | -7/Factory | Upgraded with Utility slot (x1) 6035 | -7/Factory | Reached level 11 6047 | -7/Factory | Build established: Scavenger-Ninja 6285 | -7/Factory | Reached level 12 6340 | -7/Factory | First assault squad dispatched 7057 | -7/Factory | Discovered new exit (range 8) 7095 | -7/Factory | Reached level 13 7120 | -7/Factory | Identified exit to Garrison 7120 | -7/Factory | Entered Garrison 7226 | -7/Garrison | Triggered checkpoint 7291 | -7/Garrison | Garrison Relay disabled 7402 | -7/Garrison | Core integrity fell below 50% 7420 | -7/Garrison | Reached level 14 7423 | -7/Garrison | Upgraded with Power slot (x1) 7629 | -7/Garrison | Build established: Infiltrator-Ninja 7706 | -7/Garrison | Upgraded with Utility slot (x1) 7732 | -7/Garrison | Triggered checkpoint 7752 | -7/Garrison | Triggered checkpoint 7774 | -7/Garrison | Triggered checkpoint 7803 | -7/Garrison | Destroyed 7 combat bots 7959 | -7/Garrison | Discovered new exit (range 10) 7962 | -7/Garrison | Identified exit to Factory 7964 | -7/Garrison | Installed Relay Interface Framework 7988 | -7/Garrison | Reached level 15 7988 | -7/Garrison | Triggered checkpoint 8027 | -7/Garrison | Garrison Relay disabled 8130 | -7/Garrison | Triggered checkpoint 8216 | -7/Garrison | Discovered exit to Factory (range 11) 8242 | -7/Garrison | Triggered checkpoint 8250 | -7/Garrison | Garrison Relay disabled 8284 | -7/Garrison | Upgraded with Utility slot (x1) 8306 | -7/Garrison | Spotted B-75 Beast 8341 | -7/Garrison | Spotted B-75 Beast 8525 | -7/Garrison | Phase Generator disabled 8569 | -7/Garrison | Discovered exit to Factory (range 15) 8630 | -7/Garrison | Garrison Relay disabled 8641 | -7/Garrison | Triggered checkpoint 8826 | -7/Garrison | Garrison Relay disabled 9093 | -7/Garrison | Entered Factory 9166 | -7/Factory | Reached level 16 9236 | -7/Factory | Upgraded with Weapon slot (x1) 9376 | -7/Factory | Discovered new exit (range 16) 9449 | -7/Factory | Identified exit to Factory 9539 | -7/Factory | Identified exit to Garrison 9555 | -7/Factory | Build established: Scavenger-Ninja 9868 | -7/Factory | Discovered exit to Factory (range 15) 9893 | -7/Factory | First assault squad dispatched 10057 | -7/Factory | Build established: Infiltrator-Ninja 10447 | -7/Factory | Entered Garrison 10447 | -7/Garrison | Accompanied by 1 ally 10526 | -7/Garrison | Triggered checkpoint 10554 | -7/Garrison | Garrison Relay disabled 10686 | -7/Garrison | Reached level 17 10703 | -7/Garrison | Upgraded with Propulsion slot (x1) 10720 | -7/Garrison | Triggered checkpoint 10803 | -7/Garrison | Triggered checkpoint 10805 | -7/Garrison | Triggered checkpoint 10824 | -7/Garrison | Triggered checkpoint 10952 | -7/Garrison | Triggered checkpoint 10985 | -7/Garrison | Build established: Scavenger-Ninja 11055 | -7/Garrison | Garrison Relay disabled 11090 | -7/Garrison | Discovered exit to Factory (range 10) 11094 | -7/Garrison | Expanded RIF knowledge: Alert ID Control 11186 | -7/Garrison | Triggered checkpoint 11202 | -7/Garrison | Triggered checkpoint 11302 | -7/Garrison | Discovered exit to Factory (range 14) 11430 | -7/Garrison | Triggered checkpoint 11458 | -7/Garrison | Garrison Relay disabled 11482 | -7/Garrison | Discovered exit to Factory (range 15) 11668 | -7/Garrison | Entered Factory 11670 | -6/Factory | Reached level 18 11776 | -6/Factory | Discovered new exit (range 15) 11814 | -6/Factory | Identified exit to Garrison 11829 | -6/Factory | Entered Garrison 11829 | -6/Garrison | Accompanied by 2 allies 11858 | -6/Garrison | Triggered checkpoint 11865 | -6/Garrison | Garrison Relay disabled 12106 | -6/Garrison | Triggered checkpoint 12130 | -6/Garrison | Core integrity fell below 50% 12135 | -6/Garrison | Reached level 19 12147 | -6/Garrison | Core integrity fell below 20% 12203 | -6/Garrison | Destroyed 8 combat bots 12258 | -6/Garrison | Triggered checkpoint 12288 | -6/Garrison | Triggered checkpoint 12319 | -6/Garrison | Garrison Relay disabled 12331 | -6/Garrison | Discovered new exit (range 14) 12407 | -6/Garrison | Discovered new exit (range 12) 12412 | -6/Garrison | Triggered checkpoint 12429 | -6/Garrison | Garrison Relay disabled 12503 | -6/Garrison | Triggered checkpoint 12519 | -6/Garrison | Garrison Relay disabled 12531 | -6/Garrison | Discovered new exit (range 15) 12580 | -6/Garrison | Identified exit to Factory 12620 | -6/Garrison | Triggered checkpoint 12628 | -6/Garrison | Expanded RIF knowledge: Watcher Feeds 12631 | -6/Garrison | Entered Factory 12740 | -6/Factory | Discovered new exit (range 16) 12744 | -6/Factory | Upgraded with Utility slot (x1) 12749 | -6/Factory | Identified exit to Factory 12835 | -6/Factory | Reached level 20 12981 | -6/Factory | First assault squad dispatched 13134 | -6/Factory | Identified exit to Garrison 13134 | -6/Factory | Entered Garrison 13196 | -6/Garrison | Triggered checkpoint 13198 | -6/Garrison | Garrison Relay disabled 13248 | -6/Garrison | Build established: Infiltrator-Ninja 13271 | -6/Garrison | Triggered checkpoint 13310 | -6/Garrison | Triggered checkpoint 13448 | -6/Garrison | Triggered checkpoint 13655 | -6/Garrison | Discovered exit to Factory (range 9) 13676 | -6/Garrison | Expanded RIF knowledge: Coupler Efficiency 13684 | -6/Garrison | Triggered checkpoint 13734 | -6/Garrison | Garrison Relay disabled 13746 | -6/Garrison | Entered Factory 13748 | -5/Factory | Reached level 21 13800 | -5/Factory | Core integrity fell below 50% 13910 | -5/Factory | Upgraded with Power slot (x1) 14046 | -5/Factory | First assault squad dispatched 14133 | -5/Factory | Discovered new exit (range 12) 14173 | -5/Factory | Spotted B-75 Beast 14175 | -5/Factory | Assimilated Beast 6a with formatsys_high 14218 | -5/Factory | Build established: Generator-Ninja 14633 | -5/Factory | Reached level 22 14663 | -5/Factory | Core integrity fell below 20% 14685 | -5/Factory | Discovered new exit (range 12) 15344 | -5/Factory | Destroyed by Y-64 Sentinel with Wave Gun Last Messages --------------- 14970_ Terminal disabled. 14974_ Construction Platform disabled. 15090_ U-05 Engineer builds a Wall. 15162_ Destroyed Imp. Hover Unit. 15164_ K-01 Serf cleans the DSF Access. 15164_ Destroyed Imp. Hover Unit. 15166_ W-25 Informer destroyed. 15167_ Acquired 10 matter. 15228_ U-05 Engineer builds a Wall. 15246_ ALERT: Significant disruption in Zone 2W, assault force dispatched. 15296_ Dropped Imp. Terrain Scanner. 15328_ Detecting nearby Garrison Access. 15330_ ALERT: Rogue bot located, Programmers report to Factory Zone 9Y. 15336_ Slug penetrates Garrison Access. 15336_ Destroyed Imp. Heat Sink. 15337_ P-70 Sage Hpw. Shock Rifle severed. 15339_ Penetrated by Slug. 15341_ P-70 Sage destroyed. 15341_ Slug penetrates Wall. 15342_ Acquired 10 matter. Map ----- +----------------------------------------------------+ | | | | | | | | | | | | | | | | | | | | | | | | | | | | | | | | | | | | | | | #############################???#?###?####???????? | | # ! !![ #####???#?#???#####????? | | " """ """ # !![ ###?##???#???##?#?#????? | | " """ """ # ![ #?###???#??#?#???#????? | | " """ """ =# ###?##???##??#???##????? | | + ! "" ""Y#?#####?##?#?######????? | | # ""G""@#?###?????######?#?#???? | | #####+########+####+#####p#########?##?#?####????? | | ### + ! * #?###??###???? | | ^ # ||#?#?#??#?????? | | T## !! C # |[###?#??#?????? | | ###? ! """ """ """ + ] ! ##?###??#????? | | + ! """ """ """ # ##?#??#?#????? | | # """ """ """ # ##???????????? | | # ]]] ###############??#?#??#????? | | # ]? """ """ """ #???###??#???####?####?????? | | #?? """ """ """ #? ? ? ?? ??#?#??#???????? | | + """ ?"? """ #? "?" ??" ?#?#?##????????? | | # ? ? # ""? """ ??#?#???#??????? | | # ? # """?""? #???##????????? | | # ? ?####?### # ?? ?#?###?#???????? | | # # ? # # ?"?" "?" ??###??????????? | | # # """" ? ?????" """? ?##?##?????????? | | # ? # "??" ? # ?"??""" #?????????????? | | ### ? #? ?"?" # ? # ?? ????? ???#???????????? | | ### ? # ?"""" + ? ?+ ???? ???#?????????????? | | # ? # """"?# ???# ? ???????????????????????? | | T # ? # "??" # ?? ???????? ??????????????????? | | ?# #? """" # ????#?#???????????????????????? | | #? ???? ? #????????????????????????????????? | | ? # ? # ? #????????????????????????????????? | +----------------------------------------------------+ Best States ------------- Heat Dissipation 43 Energy Generation 60 Energy Capacity 1000 Matter Stores 300 Matter Capacity 300 Sight Range 16 Terrain Scan Range 20 Terrain Scan Density 610 ECM Strength 2 Jamming Range 14 Cloak Strength 2 Armor Coverage 150 Resistance: KI 25 Resistance: TH 10 Melee Speed Boost 20 Evasion (%) 65 Targeting Accuracy 5 Force Boost 20 Defensive Hacking 14 Relay Coupler Types 2 Relay Coupler Value 138 Item Schematics ----------------- None Robot Schematics ------------------ None Fabricated ------------ Nothing Alien Tech Used ----------------- None Achievements -------------- Hehehe Infiltrator Let's See Who's Tougher Challenges ------------ None RPGLIKE | -11 -10 -10 -10 -9 -8 -7 -7 -7 -7 -6 -6 -6 -6 -5 --------- Run | Scr Mat Min Exi Min Mat Fac Gar Fac Gar Fac Gar Fac Gar Fac Levels Raised 21 | . 2 . . 1 4 5 2 1 1 1 1 1 . 2 XP Earned 35087 | 3000 3180 500 350 950 5968 7352 4151 1237 1384 1206 1909 818 686 2396 XP Spent 32560 | 1150 4560 . . 1400 4850 6100 5400 1550 1400 . . 4200 . 1950 Upgrades 50 | 6 11 . . 4 5 6 3 2 1 . . 2 . 10 Power Slot 2 | . . . . . . . 1 . . . . . . 1 Propulsion Slot 4 | . 2 . . . 1 . . . 1 . . . . . Utility Slot 9 | . 3 . . . 2 1 2 . . . . 1 . . Weapon Slot 2 | 1 . . . . . . . 1 . . . . . . Core Integrity 6 | . . . . . . . . . . . . . . 6 Heat Dissipation 3 | . 3 . . . . . . . . . . . . . Energy Generation 5 | . 1 . . . . 3 . . . . . 1 . . Mass Support 3 | . 1 . . . . 2 . . . . . . . . Inventory Capacity 3 | . 1 . . . 1 . . 1 . . . . . . Terrain Scan Density 5 | 5 . . . . . . . . . . . . . . Melee Accuracy 4 | . . . . 4 . . . . . . . . . . KI Resistance % 2 | . . . . . . . . . . . . . . 2 TH Resistance % 2 | . . . . . 1 . . . . . . . . 1 Protomatter Created 2199 | . 39 . . 32 296 42 616 69 289 10 476 . 262 68 Integrity Restored 6224 | . 93 . . 96 731 122 1564 207 1129 30 1385 . 663 204 Core 5517 | . 93 . . 96 647 103 1332 207 838 30 1304 . 663 204 Parts 707 | . . . . . 84 19 232 . 291 . 81 . . . Protomatter Decayed 461 | . 8 . . . 18 . 88 29 103 . 164 . 31 20 Game ------ Seed IntegrityFocalLeg Manual? 0 Play Time 03:31:14 Cumulative 46.7 hours Start 2022.09.25 @ 20:46:24 End 2022.09.26 @ 00:28:54 Sessions 1 Manual Loads 0 Difficulty Rogue Special Mode Winter2019/RPGLIKE Game No. 52 Rogue 32 Adventurer 20 Explorer 0 Win Type - Total 0 Types 0/0/0/0/0/0/0/0/0 Lore% 31 Gallery% 33 Achievement% 41 Wizard Run 0 Options --------- ASCII 0 Keyboard 0 Movement Mouse Keybinds 0 Fullscreen 2 Font 24/Crisp Map View 76x50 Tactical HUD 1 Map Filters NONE Filters NONE Steam 1 RUN: fce015a2-889b-43fb-aafb-403d2b125df6